bitfinex/quotes_BTCUSD_20260310
["timestamp","ask_amount","ask_price","bid_price","bid_amount"]
[1773131558743,0.03,70972.0,70960.0,0.55452721]
[1773131558943,0.08417247,70975.0,70960.0,0.55452721]
[1773131559163,0.08417247,70975.0,70961.0,0.00144]
[1773131559164,0.08417247,70971.0,70961.0,0.00144]
[1773131559699,0.03,70965.0,70957.0,0.07046521]
[1773131559887,0.08092588,70962.0,70961.0,3.926e-05]
[1773131560086,0.08092588,70962.0,70961.0,0.00144]
[1773131560642,0.03,70962.0,70961.0,0.00144]
[1773131560843,0.07045627,70966.0,70959.0,0.00144]
[1773131560844,0.03,70960.0,70959.0,0.00144]
[1773131561072,0.08092588,70960.0,70959.0,0.00144]
[1773131561679,0.05092588,70964.0,70959.0,0.00144]
[1773131561897,0.03,70963.0,70959.0,0.00144]
[1773131562157,0.05092588,70980.0,70960.0,0.55308721]
[1773131563144,0.03,70979.0,70960.0,0.55308721]
[1773131563320,0.08092588,70979.0,70961.0,0.55330721]
[1773131563738,0.03,70977.0,70962.0,0.07046024]
[1773131564430,0.03,70977.0,70963.0,0.55308721]
[1773131564636,0.07044267,70980.0,70965.0,0.55308721]
[1773131564857,0.03,70979.0,70967.0,0.55308721]
[1773131565645,0.05092588,70978.0,70962.0,0.07046024]
[1773131565846,0.03,70972.0,70963.0,0.00144]
[1773131566050,0.03,70970.0,70963.0,0.00144]
[1773131566489,0.03,70970.0,70964.0,0.00144]
[1773131567303,0.03,70974.0,70962.0,0.07046024]
[1773131567526,0.08092588,70970.0,70963.0,0.00144]
[1773131568530,0.03,70970.0,70962.0,0.07046024]
[1773131568730,0.03,70966.0,70963.0,0.00144]
[1773131568925,0.03,70964.0,70961.0,0.07046062]
[1773131569128,0.03,70964.0,70962.0,0.00144]
[1773131569355,0.03,70964.0,70956.0,0.07068565]
[1773131569543,0.08092588,70963.0,70957.0,0.00144]
[1773131569753,0.08092588,70963.0,70956.0,0.00022]
[1773131569912,0.08092588,70963.0,70957.0,0.00144]
[1773131570133,0.03,70961.0,70957.0,0.00144]
[1773131570768,0.03,70961.0,70953.0,0.00022]
[1773131570769,0.03,70959.0,70953.0,0.00022]
[1773131571072,0.03,70959.0,70951.0,0.0002754]
[1773131571073,0.03,70955.0,70952.0,0.00144]
[1773131571480,0.07046223,70961.0,70957.0,0.00022]
[1773131571682,0.04801993,70960.0,70957.0,0.00022]
[1773131571878,0.04801993,70960.0,70952.0,0.00144]
[1773131572079,0.07046223,70961.0,70948.0,0.07047415]
[1773131572080,0.03,70957.0,70948.0,0.07047415]
[1773131572239,0.03,70953.0,70946.0,0.07069576]
[1773131572440,0.07801993,70953.0,70947.0,0.00144]
[1773131572861,0.03,70951.0,70948.0,0.00144]
[1773131573710,0.07801993,70951.0,70948.0,0.00144]
[1773131574940,0.07801993,70950.0,70949.0,0.00144]
[1773131575281,0.07801993,70950.0,70946.0,0.07069576]
[1773131575489,0.07801993,70950.0,70947.0,0.00144]
[1773131575722,0.07046558,70957.0,70947.0,0.00144]
[1773131575913,0.112461,70986.0,70946.0,0.07069576]
[1773131575914,0.03,70962.0,70949.0,0.54734138]
[1773131576280,0.03,70962.0,70950.0,0.59511758]
[1773131576479,0.03,70962.0,70950.0,0.54734138]
[1773131576794,0.07045394,70969.0,70955.0,0.0477762]
[1773131576989,0.03,70968.0,70957.0,0.07046521]
[1773131577669,0.51150149,70966.0,70947.0,0.07047514]
[1773131577839,0.03,70960.0,70948.0,0.00144]
[1773131578253,0.03,70960.0,70946.0,0.07069581]
[1773131578395,0.03,70960.0,70947.0,0.00144]
[1773131578596,0.03,70960.0,70948.0,0.00144]
[1773131578813,0.07801993,70956.0,70946.0,5e-08]
[1773131579078,0.03,70956.0,70947.0,0.00144]
[1773131579233,0.07046024,70963.0,70950.0,0.54734138]
[1773131579448,0.07046024,70963.0,70948.0,0.0492162]
[1773131579646,0.07046024,70963.0,70948.0,0.0477762]
[1773131579869,0.03,70962.0,70949.0,0.00144]
[1773131580833,0.04801993,70983.0,70952.0,0.0477762]
[1773131580989,0.03,70975.0,70957.0,0.0477762]
[1773131581192,0.07801993,70973.0,70958.0,0.00144]
[1773131582021,0.07801993,70969.0,70959.0,0.00144]
[1773131582185,0.03,70969.0,70959.0,0.00144]
[1773131582916,0.10045359,70969.0,70960.0,0.07046223]
[1773131584635,0.10045359,70969.0,70959.0,0.0704624]
[1773131584865,0.10045359,70969.0,70961.0,0.00144]
[1773131585657,0.10045359,70969.0,70960.0,0.07046172]
[1773131585864,0.10045359,70969.0,70961.0,0.00144]
[1773131586666,0.03,70967.0,70957.0,0.00022]
[1773131587009,0.03,70965.0,70958.0,0.00144]
[1773131587406,0.07044646,70976.0,70958.0,0.00144]
[1773131587407,0.07043543,70987.0,70961.0,0.0477762]
[1773131587596,0.07043543,70987.0,70964.0,0.56477254]
[1773131587858,0.03,70986.0,70968.0,0.56477254]
[1773131588067,0.03,70984.0,70960.0,0.56477254]
[1773131588296,0.03,70978.0,70961.0,0.00144]
[1773131588508,0.03,70976.0,70962.0,0.00144]
[1773131588720,0.03,70974.0,70964.0,0.61254874]
[1773131588927,0.03,70974.0,70963.0,0.00144]
[1773131589586,0.50273009,70972.0,70963.0,0.00144]
[1773131589751,0.03,70968.0,70963.0,0.00144]
[1773131590045,0.03,70966.0,70963.0,0.00144]
[1773131591015,0.07045367,70969.0,70963.0,0.00144]
[1773131591833,0.07045367,70969.0,70951.0,0.56477254]
[1773131591834,0.04221617,70968.0,70951.0,0.56477254]
[1773131592038,0.07045158,70971.0,70958.0,0.56477254]
[1773131592756,0.07045158,70971.0,70957.0,0.04390071]
[1773131593079,0.03,70971.0,70958.0,0.00144]
[1773131593362,0.0002,70970.0,70958.0,0.00144]
[1773131594208,0.0302,70970.0,70956.0,0.00166]
[1773131594814,0.03,70966.0,70956.0,0.00166]
[1773131596278,0.04221617,70965.0,70949.0,0.07069279]
[1773131596477,0.03,70962.0,70951.0,0.00144]
[1773131596825,0.03,70960.0,70950.0,0.00023]
[1773131596951,0.03,70958.0,70951.0,0.00144]
[1773131597301,0.03,70958.0,70952.0,0.00144]
[1773131598946,0.03,70956.0,70952.0,0.00144]
[1773131599147,0.03,70956.0,70950.0,0.00023]
[1773131599148,0.03,70956.0,70951.0,0.00144]
[1773131600252,0.03,70956.0,70952.0,0.00022]
[1773131601589,0.03,70954.0,70952.0,0.00022]
[1773131603812,0.11267593,70963.0,70952.0,0.00022]
[1773131603813,0.07046266,70960.0,70952.0,0.00022]
[1773131604018,0.07045557,70967.0,70952.0,0.00022]
[1773131604019,0.07045729,70965.0,70954.0,0.04246071]
[1773131604241,0.07065411,70969.0,70958.0,0.04246071]
[1773131604450,0.07065411,70969.0,70959.0,0.04390071]
[1773131604739,0.07065411,70969.0,70959.0,0.00144]
[1773131604740,0.03,70968.0,70959.0,0.00144]
[1773131606463,0.03,70966.0,70959.0,0.00144]
[1773131606666,0.07045185,70971.0,70962.0,0.56477254]
[1773131606807,0.07045185,70971.0,70964.0,0.60723325]
[1773131607214,0.07045185,70971.0,70965.0,0.00144]
[1773131607716,0.03,70970.0,70965.0,0.04390071]
[1773131608535,0.0002,70969.0,70965.0,0.60867325]
[1773131608741,0.10044436,70978.0,70968.0,0.04246071]
[1773131608936,0.03,70978.0,70970.0,0.04246071]
[1773131609153,0.03,70978.0,70971.0,0.00144]
[1773131609685,0.03,70980.0,70971.0,0.00144]
[1773131609875,0.03,70980.0,70973.0,0.04246071]
[1773131610508,0.03,70980.0,70973.0,0.11290948]
[1773131610810,0.10044279,70980.0,70973.0,0.11290948]
[1773131611398,0.03,70980.0,70973.0,0.11290948]
[1773131611594,0.03,70979.0,70973.0,0.11290948]
[1773131612008,0.07044096,70982.0,70974.0,0.60723325]
[1773131612730,0.03,70981.0,70974.0,0.67768129]
[1773131614226,0.10044179,70981.0,70974.0,0.67768129]
[1773131614435,0.10044179,70981.0,70971.0,0.07189108]
[1773131615016,0.07044138,70983.0,70973.0,0.54954025]
[1773131615222,0.07044138,70983.0,70971.0,0.07189108]
[1773131615223,0.07044138,70983.0,70975.0,0.59200096]
[1773131615622,0.0002,70982.0,70975.0,0.59200096]
[1773131616030,0.03,70981.0,70975.0,0.66244813]
[1773131616379,0.03,70981.0,70975.0,0.07044717]
[1773131616553,0.03,70981.0,70976.0,0.00144]
[1773131617734,0.03,70981.0,70964.0,0.07045801]
[1773131617735,0.46704209,70980.0,70957.0,0.16592399]
[1773131617957,0.03,70971.0,70956.0,0.00144]
[1773131618310,0.03,70967.0,70957.0,0.00144]
[1773131619227,0.04071721,70964.0,70953.0,0.00144]
[1773131619501,0.03,70961.0,70953.0,0.00144]
[1773131619703,0.03,70961.0,70954.0,0.03492728]
[1773131620250,0.03,70965.0,70955.0,0.07046719]
[1773131620614,0.03631525,70964.0,70956.0,0.00144]
[1773131620770,0.03,70963.0,70956.0,0.00144]
[1773131621711,0.03,70962.0,70956.0,0.00144]
[1773131622614,0.03,70960.0,70952.0,0.07213008]
[1773131622818,0.03,70960.0,70952.0,0.00144]
[1773131622964,0.06631525,70958.0,70951.0,0.00144]
[1773131624282,0.06631525,70958.0,70949.0,0.00022]
[1773131624484,0.13678244,70955.0,70948.0,0.07069395]
[1773131624720,0.06631525,70955.0,70948.0,0.07069395]
[1773131624907,0.06631525,70955.0,70948.0,0.07213395]
[1773131625513,0.06631525,70955.0,70948.0,0.07069395]
[1773131625720,0.06631525,70955.0,70949.0,0.00144]
[1773131626152,0.03,70955.0,70948.0,0.07069395]
[1773131626329,0.03,70955.0,70949.0,0.00144]
[1773131627096,0.03,70954.0,70946.0,5e-08]
[1773131627517,0.03,70954.0,70946.0,0.00144005]
[1773131627747,0.03,70954.0,70946.0,5e-08]
[1773131627939,0.03,70954.0,70942.0,0.000521]
[1773131628102,0.03,70946.0,70938.0,0.00144]
[1773131628309,0.06631525,70944.0,70938.0,0.00144]
[1773131628722,0.13679372,70944.0,70938.0,0.00144]
[1773131629365,0.13679372,70944.0,70937.0,0.00022]
[1773131629574,0.03313049,70943.0,70931.0,0.00022]
[1773131629782,0.10047847,70944.0,70929.0,0.01022]
[1773131629783,0.03,70938.0,70929.0,0.01022]
[1773131629956,0.03,70938.0,70929.0,0.08071249]
[1773131630163,0.03,70938.0,70929.0,0.11573435]
[1773131630371,0.03313049,70958.0,70931.0,0.03502186]
[1773131630569,0.07190596,70957.0,70934.0,0.58443684]
[1773131630773,0.03,70953.0,70933.0,0.07048861]
[1773131630984,0.03,70947.0,70934.0,0.00144]
[1773131631214,0.03,70947.0,70937.0,0.03502186]
[1773131631414,0.07046719,70955.0,70940.0,0.58443684]
[1773131631609,0.07046719,70955.0,70942.0,0.58443684]
[1773131631815,0.07046719,70955.0,70944.0,0.6194587]
[1773131632093,0.03,70954.0,70945.0,0.00144]
[1773131632503,0.07046093,70962.0,70945.0,0.00144]
[1773131632705,0.07066162,70961.0,70947.0,0.58443684]
[1773131632970,0.07066162,70961.0,70949.0,0.6194587]
[1773131633169,0.03,70960.0,70949.0,0.6194587]
[1773131634932,0.03,70959.0,70951.0,0.6194587]
[1773131635129,0.03,70959.0,70952.0,0.00144]
[1773131635766,0.0302381,70959.0,70952.0,0.00144]
[1773131635972,0.03,70958.0,70952.0,0.00144]
[1773131636780,0.03,70958.0,70953.0,0.00144]
[1773131636983,0.03,70957.0,70953.0,0.07190893]
[1773131637980,0.0002381,70959.0,70953.0,0.07190893]
[1773131639580,0.0002381,70959.0,70953.0,0.07046893]
[1773131639929,0.0002381,70959.0,70954.0,0.00144]
[1773131640135,0.03,70963.0,70954.0,0.00144]
[1773131640265,0.03,70963.0,70955.0,0.03502186]
[1773131640475,0.07045238,70970.0,70954.0,0.00144]
[1773131640476,0.07044574,70977.0,70956.0,0.58443684]
[1773131640694,0.0004053,70982.0,70954.0,0.00144]
[1773131640695,0.0704425,70980.0,70961.0,0.58443684]
[1773131640895,0.0704425,70980.0,70965.0,0.58443684]
[1773131641095,0.03,70979.0,70968.0,0.03502186]
[1773131641301,0.03,70979.0,70969.0,0.00144]
[1773131642118,0.03,70979.0,70969.0,0.03646186]
[1773131642518,0.03,70979.0,70969.0,0.6208987]
[1773131642857,0.03,70977.0,70969.0,0.10691501]
[1773131643075,0.03,70977.0,70969.0,0.07189315]
[1773131643206,0.03,70977.0,70962.0,0.58443684]
[1773131643403,0.03,70971.0,70963.0,0.00144]
[1773131643689,0.06163576,70971.0,70964.0,0.00144]
[1773131644073,0.03,70971.0,70964.0,0.00144]
[1773131644588,0.03,70970.0,70963.0,0.00144]
[1773131644993,0.10045307,70970.0,70963.0,0.00144]
[1773131645184,0.03,70970.0,70963.0,0.07189897]
[1773131645388,0.07044406,70979.0,70965.0,0.54746615]
[1773131645389,0.07044425,70979.0,70965.0,0.54746615]
[1773131645692,0.03,70978.0,70969.0,0.58248801]
[1773131645839,0.03,70978.0,70969.0,0.58392801]
[1773131646461,0.03,70977.0,70969.0,0.54890615]
[1773131647102,0.03,70975.0,70969.0,0.54890615]
[1773131647585,0.03,70975.0,70969.0,0.61935915]
[1773131648037,0.03,70974.0,70969.0,0.61935915]
[1773131648240,0.03,70974.0,70969.0,0.65438101]
[1773131648681,0.03,70974.0,70969.0,0.03646186]
[1773131648834,0.03,70974.0,70969.0,0.00144]
[1773131649033,0.03,70973.0,70969.0,0.00144]
[1773131649485,0.03,70973.0,70963.0,0.07045917]
[1773131649655,0.03,70971.0,70964.0,0.00144]
[1773131650678,0.03,70971.0,70956.0,0.11059982]
[1773131650679,0.02907889,70971.0,70956.0,0.11059982]
[1773131650882,0.03,70966.0,70957.0,0.00144]
[1773131651088,0.0587465,70966.0,70958.0,0.00144]
[1773131651285,0.03,70964.0,70958.0,0.00144]
[1773131651636,0.03,70964.0,70957.0,0.00144]
[1773131652247,0.07045175,70971.0,70958.0,0.54746615]
[1773131652473,0.03,70970.0,70961.0,0.57670813]
[1773131652909,0.03,70970.0,70962.0,0.02924198]
[1773131653102,0.03,70970.0,70963.0,0.00144]
[1773131653321,0.0002,70977.0,70964.0,0.07045826]
[1773131653521,0.07064589,70977.0,70967.0,0.54746615]
[1773131653646,0.07064589,70977.0,70968.0,0.02924198]
[1773131653850,0.07064589,70977.0,70969.0,0.00144]
[1773131654416,0.03,70976.0,70969.0,0.00144]
[1773131654822,0.03,70976.0,70970.0,0.02924198]
[1773131655612,0.03,70976.0,70970.0,0.09969422]
[1773131656016,0.1004469,70976.0,70969.0,0.07189326]
[1773131657022,0.03,70975.0,70969.0,0.07189326]
[1773131657207,0.07064535,70979.0,70969.0,0.07189326]
[1773131657408,0.07605061,70992.0,70972.0,0.54746615]
[1773131657710,0.07605061,70992.0,70977.0,0.02924198]
[1773131657906,0.07605061,70992.0,70978.0,0.57814813]
[1773131658109,0.03,70991.0,70979.0,0.00144]
[1773131658471,0.03,70991.0,70983.0,0.02924198]
[1773131658623,0.03,70991.0,70983.0,0.57670813]
[1773131659173,0.03562,70992.0,70984.0,0.57670813]
[1773131659398,0.10605054,70992.0,70985.0,0.07187656]
[1773131659569,0.03562,70992.0,70985.0,0.07187656]
[1773131659795,0.10605051,70992.0,70985.0,0.00144]
[1773131660232,0.10605051,70992.0,70985.0,0.07187716]
[1773131660233,0.03,70991.0,70985.0,0.07187716]
[1773131660640,0.03,70991.0,70985.0,0.00144]
[1773131660842,0.03,70991.0,70983.0,0.07043858]
[1773131661062,0.03,70991.0,70984.0,0.13960179]
[1773131661265,0.03,70990.0,70985.0,0.00144]
[1773131663155,0.07043149,70991.0,70990.0,0.00017493]
[1773131663598,0.07025655,70991.0,70985.0,0.00144]
[1773131663989,0.03,70991.0,70985.0,0.09946427]
[1773131664969,0.03,70999.0,70987.0,0.02758732]
[1773131665219,0.03,70997.0,70985.0,0.07187695]
[1773131665542,0.03,70993.0,70986.0,0.00144]
[1773131665898,0.03,70993.0,70985.0,0.07043695]
[1773131666102,0.03,70993.0,70987.0,0.00144]
[1773131666935,0.05676619,70994.0,70987.0,0.00144]
[1773131667133,0.03,70999.0,70987.0,0.00144]
[1773131667462,0.15702163,70999.0,70988.0,0.07043443]
[1773131667636,0.08659784,70997.0,70988.0,0.07043443]
[1773131667844,0.03,70995.0,70988.0,0.07043443]
[1773131669870,0.03,70995.0,70989.0,0.00144]
[1773131670214,0.03,70998.0,70989.0,0.00144]
[1773131670428,0.03234816,71034.0,70989.0,0.00144]
[1773131670429,0.00048,71018.0,70990.0,0.55468779]
[1773131670658,0.02892207,71012.0,70994.0,0.55468779]
[1773131670855,0.02892207,71012.0,70996.0,0.55468779]
[1773131671060,0.02892207,71012.0,70998.0,0.55468779]
[1773131671272,0.03,71011.0,70999.0,0.13788975]
[1773131671471,0.03,71011.0,71001.0,0.55468779]
[1773131671716,0.03,71011.0,71002.0,0.00144]
[1773131671888,0.03,71009.0,71003.0,0.55468779]
[1773131672819,0.03,71008.0,71003.0,0.55468779]
[1773131673037,0.03,71008.0,71004.0,0.00144]
[1773131673398,0.00562,71020.0,71004.0,0.00144]
[1773131673399,0.02892207,71040.0,71005.0,0.00605626]
[1773131673627,0.02892207,71040.0,71004.0,0.00144]
[1773131673628,0.02892207,71037.0,71004.0,0.54858441]
[1773131673798,0.07038783,71035.0,71007.0,0.07041559]
[1773131674018,0.03,71028.0,71008.0,0.00144]
[1773131674216,0.02892207,71023.0,71008.0,0.55002441]
[1773131674542,0.03,71022.0,71010.0,0.54858441]
[1773131674693,0.03,71022.0,71011.0,0.13767916]
[1773131674894,0.02892207,71033.0,71012.0,0.13767916]
[1773131675093,0.02892207,71031.0,71013.0,0.00144]
[1773131675314,0.03,71030.0,71013.0,0.00144]
[1773131675580,0.03,71024.0,71014.0,0.00144]
[1773131675785,0.05892207,71024.0,71014.0,0.00144]
[1773131676287,0.12932143,71024.0,71015.0,0.07040766]
[1773131676566,0.00023,71050.0,71016.0,0.54858441]
[1773131676755,0.0082803,71060.0,71043.0,0.18968898]
[1773131676950,0.02892207,71059.0,71045.0,0.54858441]
[1773131677139,0.02892207,71059.0,71037.0,0.54858441]
[1773131677354,0.02892207,71058.0,71038.0,0.00144]
[1773131677579,0.56918074,71055.0,71027.0,0.54858441]
[1773131677764,0.0014,71059.0,71028.0,0.00144]
[1773131677765,0.03,71048.0,71028.0,0.00144]
[1773131677966,0.03,71044.0,71028.0,0.00144]
[1773131678253,0.03,71042.0,71027.0,0.54858441]
[1773131678470,0.03,71040.0,71030.0,0.07039279]
[1773131678702,0.07037495,71048.0,71031.0,0.54858441]
[1773131678929,0.02892207,71047.0,71031.0,0.54858441]
[1773131679165,0.02892207,71047.0,71030.0,0.07039279]
[1773131679342,0.02892207,71047.0,71030.0,0.6189772]
[1773131679544,0.03,71046.0,71030.0,0.6189772]
[1773131679712,0.03,71046.0,71031.0,0.006583]
[1773131679919,0.03,71046.0,71032.0,0.55002441]
[1773131680577,0.07037297,71050.0,71035.0,0.00602402]
[1773131680787,0.07037297,71050.0,71038.0,0.54858441]
[1773131680997,0.0703712,71052.0,71040.0,0.54858441]
[1773131681723,0.03,71051.0,71040.0,0.54858441]
[1773131682570,0.07036659,71057.0,71042.0,0.54858441]
[1773131682744,0.0703643,71059.0,71044.0,0.55474384]
[1773131682956,0.06994959,71065.0,71047.0,0.00561205]
[1773131683168,0.02708389,71064.0,71048.0,0.00144]
[1773131683646,0.03,71063.0,71048.0,0.55002441]
[1773131683838,0.03,71063.0,71048.0,0.54858441]
[1773131684035,0.03,71063.0,71049.0,0.55002441]
[1773131684240,0.03,71061.0,71049.0,0.00144]
[1773131684464,0.03,71061.0,71050.0,0.54858441]
[1773131684666,0.03,71061.0,71049.0,0.00144]
[1773131684667,0.06994959,71065.0,71049.0,0.07181288]
[1773131684953,0.06994959,71065.0,71050.0,0.00144]
[1773131685177,0.06994959,71065.0,71050.0,1e-08]
[1773131685403,0.06994959,71065.0,71048.0,0.54858441]
[1773131685404,0.03,71064.0,71045.0,0.07037792]
[1773131685605,0.03,71064.0,71051.0,0.54858441]
[1773131685823,0.03,71064.0,71052.0,0.01422611]
[1773131686053,0.07035812,71068.0,71052.0,0.01422611]
[1773131686054,0.07034525,71078.0,71052.0,0.54858441]
[1773131686248,0.02708389,71076.0,71053.0,0.0297717]
[1773131686473,0.03,71072.0,71053.0,0.0297717]
[1773131686662,0.59918074,71062.0,71025.0,0.00023]
[1773131686876,0.03,71056.0,71034.0,0.54858441]
[1773131687041,0.07035416,71069.0,71035.0,0.0283317]
[1773131687042,0.03,71054.0,71035.0,0.0283317]
[1773131687209,0.03,71052.0,71036.0,0.00144]
[1773131687838,0.03,71052.0,71036.0,0.0297717]
[1773131688006,0.03,71052.0,71037.0,0.0283317]
[1773131688212,0.00144,71053.0,71037.0,0.0283317]
[1773131688409,0.00144,71053.0,71037.0,0.0297717]
[1773131688631,0.59918074,71049.0,71030.0,0.0283317]
[1773131688962,0.07037099,71052.0,71030.0,0.00144]
[1773131688963,0.03,71045.0,71030.0,0.00144]
[1773131689162,0.00144,71044.0,71030.0,0.00144]
[1773131689469,0.03,71043.0,71030.0,0.00144]
[1773131689639,0.03,71043.0,71031.0,0.0283317]
[1773131690215,0.59918074,71039.0,71012.0,0.07041]
[1773131690420,0.03,71031.0,71010.0,0.0283317]
[1773131690616,0.03,71028.0,71010.0,0.0283317]
[1773131690833,0.07039378,71029.0,71011.0,0.00144]
[1773131690834,0.03,71026.0,71011.0,0.00144]
[1773131691439,0.07039378,71029.0,71007.0,0.0003964]
[1773131691440,0.02708389,71023.0,71007.0,0.0003964]
[1773131691636,0.03,71016.0,71002.0,0.00144]
[1773131691889,0.03,71016.0,71005.0,0.13697855]
[1773131692192,0.03,71016.0,71006.0,0.13697855]
[1773131692495,0.03,71016.0,71004.0,0.00022]
[1773131692711,0.67066852,71014.0,71004.0,0.00022]
[1773131692902,0.00144,71013.0,71004.0,7.424e-05]
[1773131693691,0.00144,71013.0,70991.0,0.11059982]
[1773131693692,0.06441553,71007.0,70989.0,0.00022]
[1773131693894,0.00144,71006.0,70990.0,0.13713214]
[1773131694117,0.00144,71006.0,70991.0,0.13713214]
[1773131694321,0.03,71004.0,70992.0,0.13713214]
[1773131694490,0.03,71004.0,70990.0,0.00144]
[1773131694692,0.03,71002.0,70990.0,0.00144]
[1773131694996,0.03,71002.0,70989.0,0.00022]
[1773131695796,0.03,71002.0,70989.0,1e-08]
[1773131696017,0.57118275,70994.0,70976.0,0.16590124]
[1773131696217,0.03,70992.0,70978.0,0.16590124]
[1773131696420,0.03,70992.0,70977.0,0.16734124]
[1773131696629,0.03,70990.0,70978.0,0.07044396]
[1773131696837,0.03,70990.0,70978.0,0.16590124]
[1773131697036,0.03,70990.0,70977.0,0.23778628]
[1773131697235,0.03,70990.0,70979.0,0.54299886]
[1773131697416,0.03,70990.0,70979.0,0.00022]
[1773131697751,0.03,70990.0,70979.0,0.16612124]
[1773131698065,0.03,70990.0,70979.0,0.23656401]
[1773131698285,0.03,70990.0,70981.0,0.16590124]
[1773131698674,0.03,70988.0,70981.0,0.16590124]
[1773131699235,0.07042551,70997.0,70989.0,0.00022]
[1773131699846,0.03,70996.0,70989.0,0.00022]
[1773131700182,0.60559828,70996.0,70982.0,0.00144]
[1773131700356,0.60559828,70996.0,70981.0,0.16756124]
[1773131700831,0.03,70994.0,70981.0,0.07044065]
[1773131700992,0.03441553,71010.0,70984.0,0.03259668]
[1773131701201,0.00562,71020.0,70992.0,0.03259668]
[1773131701430,0.00562,71020.0,71000.0,0.15856575]
[1773131701431,0.07040369,71019.0,71000.0,0.15856575]
[1773131701608,0.07040369,71019.0,70982.0,0.39886749]
[1773131701609,0.57559828,71016.0,71001.0,0.0013137]
[1773131701965,0.57118275,71015.0,71001.0,0.00116793]
[1773131702325,0.00144,71032.0,71001.0,0.00116793]
[1773131702488,0.10480161,71037.0,71005.0,0.03259668]
[1773131702489,0.07038882,71036.0,71005.0,0.03259668]
[1773131702690,0.54118275,71032.0,71008.0,0.10301079]
[1773131702915,0.03,71026.0,71009.0,0.00231625]
[1773131703120,0.03144,71026.0,71009.0,0.00231625]
[1773131703373,0.03144,71026.0,71010.0,0.57537554]
[1773131703550,0.03144,71026.0,71011.0,0.00073045]
[1773131703883,0.00144,71026.0,71011.0,0.00073045]
[1773131704678,0.00144,71026.0,71011.0,0.00217045]
[1773131704882,0.03,71023.0,71011.0,0.00217045]
[1773131705021,0.03,71023.0,71011.0,0.00202471]
[1773131705228,0.07016873,71024.0,70999.0,0.07042311]
[1773131705423,0.03,71019.0,71000.0,0.00144]
[1773131705745,0.58428503,71017.0,71001.0,0.00144]
[1773131706264,0.58428503,71017.0,71002.0,0.00144]
[1773131706465,0.55428503,71014.0,71001.0,0.00144]
[1773131706669,0.03,71011.0,70993.0,0.07042947]
[1773131706845,0.03,71009.0,70994.0,0.00144]
[1773131707261,0.03,71009.0,70995.0,0.00144]
[1773131707463,0.55428503,71008.0,70992.0,0.00562]
[1773131707668,0.58428503,71005.0,71002.0,0.00022]
[1773131707869,0.58572503,71005.0,70992.0,0.00562]
[1773131708103,0.55562503,71005.0,70995.0,0.00022]
[1773131708298,0.03,70999.0,70979.0,0.07044337]
[1773131708553,0.03,70999.0,70980.0,0.57949751]
[1773131708738,0.03,70999.0,70981.0,0.57805751]
[1773131708909,0.03,70997.0,70982.0,0.07044039]
[1773131709502,0.00144,71015.0,70989.0,0.0095982]
[1773131709709,0.00144,71015.0,70992.0,0.54546083]
[1773131709960,0.03,71013.0,70993.0,0.5566308]
[1773131710532,0.03,71011.0,70994.0,0.00144]
[1773131710740,0.03,71011.0,70982.0,0.07044039]
[1773131710741,0.03,71007.0,70989.0,0.00144]
[1773131710941,0.03,71005.0,70991.0,0.07043146]
[1773131711157,0.03,71005.0,70989.0,0.07043275]
[1773131711158,0.61852022,71005.0,70989.0,0.07043275]
[1773131711367,0.61852022,71005.0,70989.0,0.07187275]
[1773131711968,0.03,71003.0,70975.0,0.54569083]
[1773131712167,0.07185658,71006.0,70975.0,0.54569083]
[1773131712168,0.03,70999.0,70977.0,0.07044513]
[1773131712400,0.03,70995.0,70978.0,0.00144]
[1773131712977,0.03,70993.0,70979.0,0.07044337]
[1773131714325,0.03,70993.0,70980.0,0.5557871]
[1773131714543,0.03,70993.0,70991.0,0.00022]
[1773131715041,0.10043047,70992.0,70991.0,0.00022]
[1773131715463,0.07042749,70995.0,70991.0,0.00022]
[1773131716162,0.03,70993.0,70991.0,0.00022]
[1773131716860,0.07186188,71001.0,70991.0,0.07065116]
[1773131717153,0.03,71005.0,70992.0,0.54690083]
[1773131717398,0.07129316,71006.0,70992.0,0.54690083]
[1773131718007,0.00087633,71006.0,70992.0,0.54690083]
[1773131718239,0.03,71010.0,70993.0,0.54546083]
[1773131719085,0.03,71008.0,70994.0,0.07042848]
[1773131719290,0.07040397,71019.0,70994.0,0.07042848]
[1773131719291,0.07040072,71022.0,70998.0,0.15856575]
[1773131719468,0.07040072,71022.0,70999.0,0.54690083]
[1773131719669,0.07040072,71023.0,70999.0,0.54690083]
[1773131720073,0.03,71022.0,70999.0,0.54690083]
[1773131720274,0.03,71022.0,71000.0,0.00023]
[1773131720506,0.03,71022.0,71001.0,0.54546083]
[1773131721273,0.03,71024.0,71003.0,0.54546083]
[1773131721495,0.07039392,71029.0,71011.0,0.54546083]
[1773131721699,0.07183303,71030.0,71013.0,0.54546083]
[1773131721968,0.07183303,71030.0,71015.0,0.54546083]
[1773131722201,0.07183303,71030.0,71016.0,0.00144]
[1773131722403,0.03,71029.0,71016.0,0.00144]
[1773131723220,0.07038682,71037.0,71017.0,0.07040567]
[1773131723433,0.03144,71036.0,71017.0,0.6158665]
[1773131723868,0.03,71034.0,71017.0,0.07040567]
[1773131724074,0.03,71030.0,71018.0,0.00144]
[1773131725199,0.00144,71034.0,71019.0,0.07040369]
[1773131725200,0.03,71034.0,71019.0,0.07040369]
[1773131725422,0.03,71034.0,71020.0,0.00144]
[1773131725423,0.62760044,71034.0,71020.0,0.00144]
[1773131725560,0.62760044,71034.0,71020.0,0.00129427]
[1773131725756,0.62760044,71034.0,71017.0,0.07040567]
[1773131725757,0.58428503,71034.0,71017.0,0.07040567]
[1773131725958,0.03,71026.0,71013.0,0.07184961]
[1773131726172,0.03,71024.0,71013.0,0.07184961]
[1773131727111,0.07038783,71035.0,71009.0,0.00144]
[1773131727112,0.58428503,71020.0,71009.0,0.00144]